fUSD/lending_fUSD_20250702
["ID","MTS","AMOUNT","RATE_DAILY","PERIOD"]
[369074731,1751456961460,-303.59,0.00017523,2]
[369074732,1751456961482,-301.48,0.00017532,2]
[369074733,1751456961504,-305.33,0.00017532,2]
[369074734,1751456961526,-304.23,0.00017535,2]
[369074735,1751456961548,-304.74,0.00017546,2]
[369074736,1751456961570,-301.09,0.00017547,2]
[369074737,1751456961592,-300.63,0.00017565,2]
[369074738,1751456961617,-301.42,0.00017565,2]
[369074739,1751456961639,-302.92,0.00017578,2]
[369074740,1751456961661,-300.26,0.0001759,2]
[369074741,1751456961683,-300.0,0.00017607,2]
[369074742,1751456961707,-300.72,0.00017608,2]
[369074743,1751456961729,-301.94,0.00017623,2]
[369074744,1751456961752,-303.5,0.00017652,2]
[369074745,1751456961774,-301.2,0.00017667,2]
[369074746,1751456961796,-301.04,0.00017716,2]
[369074747,1751456961819,-302.23,0.00017722,2]
[369074748,1751456961847,-1200.0,0.00017808,2]
[369074749,1751456961869,-301.13,0.00017809,2]
[369074750,1751456961892,-302.22,0.00017809,2]
[369074751,1751456961916,-303.19,0.00017854,2]
[369074752,1751456961940,-302.41,0.00017933,2]
[369074753,1751456961963,-301.47,0.00017982,2]
[369074754,1751456961985,-302.86,0.00018111,2]
[369074755,1751456962008,-11.27259,0.00018145,2]
[369074756,1751456963472,-293.10741,0.00018145,2]
[369074757,1751456963494,-305.86,0.00018371,2]
[369074758,1751456963516,-304.56,0.00018371,2]
[369074759,1751456963539,-300.0,0.00018631,2]
[369074760,1751456963565,-737.91267551,0.000189,2]
[369074761,1751456963588,-300.0,0.0001925,2]
[369074762,1751456963613,-737.91267542,0.0001959,2]
[369074763,1751456963637,-737.91267542,0.00020279,3]
[369074764,1751456963663,-737.91267542,0.00020969,4]
[369074765,1751456963688,-737.91267542,0.00021659,5]
[369074766,1751456963710,-225.46,0.00021885,2]
[369074767,1751456963733,-500.0,0.00021918,2]
[369074768,1751456963756,-500.0,0.00021918,2]
[369074769,1751456963778,-500.0,0.00021918,2]
[369074770,1751456963799,-500.0,0.00021918,2]
[369074771,1751456963820,-500.0,0.00021918,2]
[369074772,1751456963845,-500.0,0.00021918,2]
[369074773,1751456963867,-500.0,0.00021918,2]
[369074774,1751456963890,-500.0,0.00021918,2]
[369074775,1751456963911,-500.0,0.00021918,2]
[369074776,1751456963935,-81.44921281,0.00021918,2]
[369074777,1751456964264,-418.55078719,0.00021918,2]
[369074778,1751456964289,-737.91267542,0.00022348,7]
[369074779,1751456964313,-737.91267542,0.00023038,8]
[369074780,1751456964334,-1000.0,0.00023444,2]
[369074781,1751456964356,-5000.0,0.00023592,2]
[369074782,1751456964380,-737.91267542,0.00023728,9]
[369074783,1751456964402,-1367.71118655,0.000238,2]
[369074784,1751456964811,-632.28881345,0.000238,2]
[369074785,1751456964833,-895.66,0.00023836,2]
[369074786,1751456964859,-737.91267542,0.00024417,11]
[369074787,1751456964881,-150.99,0.0002498,2]
[369074788,1751456964903,-203.77,0.0002498,5]
[369074789,1751456964925,-155.0,0.00025107,2]
[369074790,1751456964951,-737.91267542,0.00025107,12]
[369074791,1751456964972,-207.4,0.00025302,2]
[369074792,1751456964995,-500.0,0.00025302,2]
[369074793,1751456965018,-500.0,0.00025302,2]
[369074794,1751456965040,-500.0,0.00025302,2]
[369074795,1751456965062,-500.0,0.00025302,2]
[369074796,1751456965083,-500.0,0.00025302,2]
[369074797,1751456965104,-500.0,0.00025302,2]
[369074798,1751456965124,-500.0,0.00025452,2]
[369074799,1751456965149,-737.91267542,0.00025797,13]
[369074800,1751456965170,-1000.0,0.00025892,2]
[369074801,1751456965192,-1000.0,0.00026375,2]
[369074802,1751456965218,-41.15316029,0.00026486,15]
[369074803,1751456965502,-696.75951513,0.00026486,15]
[369074804,1751456965527,-2000.0,0.000266,2]
[369074805,1751456965550,-502.0,0.00026824,2]
[369074806,1751456965572,-168.0,0.00027,7]
[369074807,1751456965598,-737.91267542,0.00027176,16]
[369074808,1751456965623,-479.53,0.000272,7]
[369074809,1751456965644,-976.44250342,0.00027387,2]
[369074810,1751456965665,-150.0,0.00027397,2]
[369074811,1751456965686,-700.0,0.00027397,2]
[369074812,1751456965707,-1997.47,0.00027397,2]
[369074813,1751456965729,-300.0,0.00027397,2]
[369074814,1751456965750,-181.02,0.00027397,80]
[369074815,1751456965776,-737.91267542,0.00027866,17]
[369074816,1751456965798,-372.95263061,0.00028,5]
[369074817,1751456966308,-10000.0,0.00028,5]
[369074818,1751456966537,-4184.13096601,0.00028,5]
[369074819,1751456966560,-200.0,0.00028027,2]
[369074820,1751456966582,-150.0,0.00028118,2]
[369074821,1751456966608,-737.91267542,0.00028555,19]
[369074822,1751456966628,-200.0,0.00028732,7]
[369074823,1751456966650,-168.0,0.00028767,14]
[369074824,1751456966672,-1997.47,0.00028767,2]
[369074825,1751456966694,-150.0,0.00028839,2]
[369074826,1751456966719,-737.91267542,0.00029245,20]
[369074827,1751456966740,-1474.57368315,0.000293,2]
[369074828,1751456967100,-525.42631685,0.000293,2]
[369074829,1751456967140,-500.0,0.000293,2]
[369074830,1751456967165,-500.0,0.000293,2]
[369074831,1751456967188,-500.0,0.000293,2]
[369074832,1751456967209,-500.0,0.000293,2]
[369074833,1751456967230,-500.0,0.000293,2]
[369074834,1751456967253,-500.0,0.000293,2]
[369074835,1751456967275,-1000.0,0.00029305,2]
[369074836,1751456967296,-5474.57368315,0.0002941,2]
[369074837,1751456967680,-10000.0,0.0002941,2]
[369074838,1751456968382,-1499.60760689,0.0002941,2]
[369074839,1751456968409,-150.0,0.0002956,2]
[369074840,1751456968432,-502.0,0.00029589,6]
[369074841,1751456968455,-1570.98343,0.000297,2]
[369074842,1751456968476,-6277.40896311,0.0002989,2]
[369074843,1751456969225,-2411.00443689,0.0002989,2]
[369074844,1751456969247,-1000.0,0.0002989,2]
[369074845,1751456969271,-6588.99556311,0.000299,2]
[369074846,1751456969869,-3290.79923689,0.000299,2]
[369074847,1751456969894,-626.33985478,0.000299,2]
[369074848,1751456969919,-1000.0,0.000299,10]
[369074849,1751456969941,-160.17105683,0.000299,15]
[369074850,1751456969964,-161.19698033,0.000299,2]
[369074851,1751456969991,-737.91267542,0.00029934,22]
[369074852,1751456970014,-4023.58019575,0.0002999,2]
[369074853,1751456970197,-2067.60059825,0.0002999,2]
[369074854,1751456970221,-7932.39940175,0.0002999,2]
[369074855,1751456970692,-10000.0,0.0002999,2]
[369074856,1751456971267,-150.0,0.000175,2]
[369074857,1751456971290,-3449.52069987,0.0002999,2]
[369074858,1751456971312,-230.83061841,0.0002999,2]
[369074859,1751456971334,-601.46380117,0.0002999,2]
[369074860,1751456971356,-5568.18488055,0.0002999,2]
[369074861,1751456972117,-287.72,0.000272,7]
[369074862,1751456972139,-9712.28,0.0002999,2]
[369074863,1751456972442,-10000.0,0.0002999,2]
[369074864,1751456973416,-10000.0,0.0002999,2]
[369074865,1751456973533,-10000.0,0.0002999,2]
[369074866,1751456980203,-10000.0,0.0002999,2]
[369074867,1751456980512,-10000.0,0.0002999,2]
[369074868,1751456980964,-10000.0,0.0002999,2]
[369074869,1751456981431,-10000.0,0.0002999,2]
[369074870,1751456981966,-10000.0,0.0002999,2]
[369074871,1751456982220,-10000.0,0.0002999,2]
[369074872,1751456982776,-10000.0,0.0002999,2]
[369074873,1751456982957,-10000.0,0.0002999,2]
[369074874,1751456983270,-10000.0,0.0002999,2]
[369074875,1751456983951,-4369.76147175,0.00029989,2]
[369074876,1751456983975,-5630.23852825,0.0002999,2]
[369074877,1751456984591,-10000.0,0.0002999,2]
[369074878,1751456985034,-3716.4479932,0.0002999,2]
[369074879,1751456985056,-6283.5520068,0.0003,2]
[369074880,1751456985567,-10000.0,0.0003,2]
[369074881,1751456987358,-10000.0,0.0003,2]
[369074882,1751456987968,-10000.0,0.0003,2]
[369074883,1751456988512,-10000.0,0.0003,2]
[369074884,1751456988812,-10000.0,0.0003,2]
[369074885,1751456989225,-10000.0,0.0003,2]
[369074886,1751456990085,-10000.0,0.0003,2]
[369074887,1751456990672,-10000.0,0.0003,2]
[369074888,1751456990978,-10000.0,0.0003,2]
[369074889,1751456991323,-10000.0,0.0003,2]
[369074890,1751456991629,-10000.0,0.0003,2]
[369074891,1751456992011,-10000.0,0.0003,2]
[369074892,1751456992677,-10000.0,0.0003,2]
[369074893,1751456992994,-10000.0,0.0003,2]
[369074894,1751456993521,-10000.0,0.0003,2]
[369074895,1751456994798,-10000.0,0.0003,2]
[369074896,1751456995079,-10000.0,0.0003,2]
[369074897,1751456995303,-10000.0,0.0003,2]
[369074898,1751456996007,-10000.0,0.0003,2]
[369074899,1751456996555,-10000.0,0.0003,2]
[369074900,1751456997175,-10000.0,0.0003,2]
[369074901,1751456997819,-10000.0,0.0003,2]
[369074902,1751456998711,-10000.0,0.0003,2]
[369074903,1751456999119,-10000.0,0.0003,2]
[369074904,1751456999592,-10000.0,0.0003,2]
[369074905,1751457000048,-10000.0,0.0003,2]
[369074906,1751457000418,-10000.0,0.0003,2]
[369074907,1751457000997,-330.1621596,0.000299,21]
[369074908,1751457001019,-9669.8378404,0.0003,2]
[369074909,1751457001646,-10000.0,0.0003,2]
[369074910,1751457002267,-10000.0,0.0003,2]
[369074911,1751457002577,-10000.0,0.0003,2]
[369074912,1751457003531,-10000.0,0.0003,2]
[369074913,1751457005030,-10000.0,0.0003,2]
[369074914,1751457005511,-2524.06280629,0.0003,2]
[369074915,1751457005533,-6873.03475123,0.0003,10]
[369074916,1751457005555,-602.90244248,0.0003,5]
[369074918,1751457021133,-2142.0,0.0003,5]
[369074919,1751457030617,-444.01541418,0.000274,2]
[369074920,1751457030643,-9555.98458582,0.0003,5]
[369074925,1751457032374,-13678.61492301,0.0003,5]
[369074926,1751457032384,-11457.38059622,0.0003,2]
[369074927,1751457032503,-585.88327243,0.0003,2]
[369074928,1751457032514,-370.27217021,0.0003,2]
[369074929,1751457032560,-1922.19,0.0003,2]
[369074930,1751457032572,-1502.3903051,0.0003,2]
[369074931,1751457032663,-1048.80954549,0.0003,2]
[369074932,1751457032674,-668.03,0.0003,2]
[369074941,1751457038281,-404.0519922,0.0003,2]
[369074945,1751457042575,-1088.08188254,0.0003,2]
[369074946,1751457042587,-288.18569056,0.0003,2]
[369074947,1751457042596,-74.88430945,0.0003,3]
[369074951,1751457043646,-15697.77222034,0.0003,3]
[369074952,1751457043655,-5578.31812074,0.0003,120]
[369074953,1751457043665,-250.54002492,0.0003,5]
[369074954,1751457043674,-1765.77364624,0.0003,2]
[369074955,1751457043684,-13547.66965468,0.0003,2]
[369074956,1751457043694,-161.28726097,0.0003,2]
[369074957,1751457043704,-3022.47707378,0.0003,2]
[369074958,1751457043714,-10596.1896323,0.0003,2]
[369074959,1751457043723,-368.67373965,0.0003,2]
[369074960,1751457043733,-158.449411,0.0003,7]
[369074961,1751457043744,-151.0,0.0003,7]
[369074962,1751457043753,-34.84921538,0.0003,7]
[369074963,1751457043765,-116.15078462,0.0003,7]
[369074964,1751457043775,-151.0,0.0003,7]
[369074966,1751457043785,-234.798436,0.0003,7]
[369074967,1751457043794,-151.0,0.0003,7]
[369074969,1751457043804,-428.0,0.0003,120]
[369074971,1751457043813,-151.0,0.0003,7]
[369074972,1751457043822,-151.0,0.0003,7]
[369074974,1751457043832,-151.0,0.0003,7]
[369074975,1751457043841,-151.0,0.0003,7]
[369074977,1751457043851,-196.816046,0.0003,7]
[369074978,1751457043861,-151.0,0.0003,7]
[369074979,1751457043874,-236.528361,0.0003,7]
[369074980,1751457043884,-151.0,0.0003,7]
[369074981,1751457043894,-151.0,0.0003,7]
[369074983,1751457043903,-151.0,0.0003,7]
[369074985,1751457043913,-151.0,0.0003,7]
[369074986,1751457043923,-151.0,0.0003,7]
[369074987,1751457043933,-151.0,0.0003,7]
[369074988,1751457043943,-151.0,0.0003,7]
[369074989,1751457043953,-235.826146,0.0003,7]
[369074990,1751457043963,-163.0,0.0003,14]
[369074991,1751457043972,-151.0,0.0003,7]
[369074992,1751457043981,-210.440574,0.0003,7]
[369074993,1751457043991,-257.827412,0.0003,7]
[369074994,1751457044001,-215.0,0.0003,2]
[369074995,1751457044016,-29189.8605358,0.00030042,2]
[369074996,1751457044025,-870.92329027,0.00030112,2]
[369074997,1751457044035,-196.05223944,0.0003013,2]
[369074998,1751457044044,-1997.47,0.00030137,2]
[369074999,1751457044053,-151.0,0.00030137,7]
[369075000,1751457044063,-151.0,0.00030137,7]
[369075001,1751457044072,-500.0,0.00030167,5]
[369075002,1751457044081,-330.16215934,0.0003021,22]
[369075003,1751457044091,-151.0,0.00030261,7]
[369075004,1751457044266,-626.3398547,0.0003028,2]
[369075005,1751457044280,-163.0,0.00030411,14]
[369075006,1751457044289,-876.459,0.00030518,26]
[369075007,1751457044299,-330.16215934,0.00030521,23]
[369075008,1751457044308,-626.3398547,0.00030661,2]
[369075009,1751457044317,-330.16215934,0.00030831,23]
[369075010,1751457044327,-3051.61827323,0.00030879,2]
[369075011,1751457044337,-38656.7878506,0.00030969,2]
[369075012,1751457044346,-151.0,0.00030979,7]
[369075013,1751457044355,-3045.590397,0.0003099,13]
[369075014,1751457044365,-151.0,0.0003099,7]
[369075015,1751457044374,-151.0,0.0003099,7]
[369075016,1751457044384,-29189.8605358,0.0003099,2]
[369075017,1751457044394,-3051.61827318,0.00030993,2]
[369075018,1751457044403,-10690.96005081,0.00031,13]
[369075019,1751457044413,-19253.65485073,0.00031,120]
[369075020,1751457044422,-331.55855483,0.00031,5]
[369075021,1751457044431,-2835.02505117,0.00031,7]
[369075022,1751457044441,-151.0,0.00031,7]
[369075023,1751457044451,-626.3398547,0.00031041,2]
[369075024,1751457044460,-161.19698032,0.00031099,2]
[369075025,1751457044469,-330.16215934,0.00031141,24]
[369075026,1751457044479,-1508.55658701,0.0003131,2]
[369075027,1751457044488,-439.0,0.00031332,5]
[369075028,1751457044498,-38656.7878506,0.0003138,2]
[369075029,1751457044507,-29189.8605358,0.0003138,2]
[369075030,1751457044516,-151.0,0.0003141,7]
[369075031,1751457044526,-151.0,0.0003141,7]
[369075032,1751457044535,-626.3398547,0.00031422,2]
[369075033,1751457044545,-19084.96975967,0.0003143,4]
[369075034,1751457044554,-330.16215934,0.00031452,25]
[369075035,1751457044564,-1997.47,0.00031507,2]
[369075036,1751457044573,-151.0,0.00031507,7]
[369075037,1751457044583,-1508.556587,0.00031564,2]
[369075038,1751457044592,-163.0,0.00031644,14]
[369075039,1751457044601,-1570.98344,0.000317,2]
[369075040,1751457044611,-168.0,0.00031713,2]
[369075041,1751457044620,-330.16215934,0.00031762,25]
[369075042,1751457044630,-160.17105683,0.00031772,15]
[369075043,1751457044640,-626.3398547,0.00031802,2]
[369075044,1751457044650,-1508.556587,0.00031818,2]
[369075045,1751457044659,-6788.36997175,0.000319,2]
[369075046,1751457044669,-38656.7878506,0.00031986,2]
[369075047,1751457044679,-29189.8605358,0.00031986,2]
[369075048,1751457044688,-1542.62273863,0.00032,2]
[369075049,1751457044698,-400.0,0.00032,120]
[369075050,1751457044707,-151.0,0.00032016,7]
[369075051,1751457044716,-151.0,0.00032016,7]
[369075052,1751457044726,-330.16215934,0.00032072,26]
[369075053,1751457044736,-1508.556587,0.00032073,2]
[369075054,1751457044745,-2000.0,0.000321,2]
[369075055,1751457044755,-626.3398547,0.00032183,2]
[369075056,1751457044765,-1000.0,0.00032236,2]
[369075057,1751457044774,-161.19698032,0.00032297,2]
[369075058,1751457044784,-152.0,0.00032313,3]
[369075059,1751457044793,-1508.556587,0.00032327,2]
[369075060,1751457044802,-6788.36997174,0.00032338,2]
[369075061,1751457044812,-502.0,0.00032353,11]
[369075062,1751457044822,-330.16215934,0.00032383,26]
[369075063,1751457044831,-371.65168802,0.000325,2]
[369075064,1751457044841,-626.3398547,0.00032563,2]
[369075065,1751457044851,-1508.556587,0.00032581,2]
[369075066,1751457044860,-186.28782384,0.000326,4]
[369075067,1751457044871,-2000.0,0.000326,11]
[369075068,1751457044881,-29189.8605358,0.0003267,2]
[369075069,1751457044891,-330.16215934,0.00032693,27]
[369075070,1751457044900,-151.0,0.000327,7]
[369075071,1751457044910,-13417.14,0.000327,4]
[369075072,1751457044924,-3000.0,0.000327,11]
[369075073,1751457044934,-38656.7878506,0.00032756,2]
[369075074,1751457044944,-216.3874,0.00032756,7]
[369075075,1751457044953,-151.0,0.00032761,7]
[369075076,1751457044963,-530.4,0.00032766,3]
[369075077,1751457044973,-6788.36997174,0.00032776,2]
[369075078,1751457044981,-29189.8605358,0.0003279,2]
[369075079,1751457044990,-4000.0,0.000328,11]
[369075080,1751457045000,-151.0,0.00032825,7]
[369075081,1751457045010,-38656.7878506,0.00032835,2]
[369075082,1751457045020,-29189.8605358,0.00032835,2]
[369075083,1751457045029,-156.02,0.00032846,2]
[369075084,1751457045039,-1614.0,0.00032849,2]
[369075085,1751457045048,-1285.0,0.00032849,2]
[369075086,1751457045057,-495.16618784,0.00032855,2]
[369075087,1751457045067,-500.0,0.00032855,2]
[369075088,1751457045076,-500.0,0.00032855,2]
[369075089,1751457045085,-380.48261513,0.00032855,2]
[369075090,1751457045095,-443.29967561,0.00032855,2]
[369075091,1751457045104,-193283.939253,0.00032856,2]
[369075092,1751457045114,-204329.02375,0.00032856,2]
[369075093,1751457045123,-77313.5757012,0.00032866,2]
[369075094,1751457045132,-57901.44635212,0.00032866,2]
[369075322,1751457048842,-150.0,0.00029669,2]
[369075324,1751457048851,-150.0,0.00030462,2]
[369075326,1751457048861,-640.04245855,0.00031108,2]
[369075613,1751457191997,151.0,0.00027397,120]
[369075614,1751457194665,-150.0,0.00018,2]
[369075615,1751457208033,162.0,0.00027397,120]
[369075617,1751457303016,156.46,0.00013699,2]
[369075618,1751457334834,5800.0,0.00019178,30]
[369075619,1751457347991,150.0,0.00018,2]
[369075620,1751457370655,4543.54,0.0002,3]
[369075622,1751457556699,-221.35,0.00018,2]
[369075624,1751457685769,-300.0,0.00019999,2]
[369075625,1751457685792,-304.53,0.00019999,2]
[369075626,1751457685819,-305.89,0.00019999,2]
[369075627,1751457685841,-4089.58,0.0002,3]
[369075635,1751458231663,-11366.88,0.0002,3]
[369075636,1751458231673,-304.39,0.0002,2]
[369075637,1751458231683,-302.49,0.0002,2]
[369075638,1751458231693,-303.7,0.0002,2]
[369075639,1751458231702,-305.52,0.0002,2]
[369075640,1751458231712,-305.31,0.0002,2]
[369075641,1751458231721,-254.21995351,0.000209,4]
[369075642,1751458231731,-254.21995345,0.00021521,5]
[369075643,1751458231741,-254.21995345,0.00022141,6]
[369075644,1751458231750,-753.0,0.00022515,2]
[369075645,1751458231760,-254.21995345,0.00022762,7]
[369075646,1751458231770,-254.21995345,0.00023383,9]
[369075647,1751458231779,-254.21995345,0.00024003,10]
[369075648,1751458231789,-300.55,0.0002401,2]
[369075649,1751458231798,-304.74,0.0002401,2]
[369075650,1751458231808,-250.0,0.0002401,2]
[369075651,1751458231818,-300.0,0.0002401,2]
[369075652,1751458231828,-302.25,0.0002401,2]
[369075653,1751458231838,-302.84,0.0002401,2]
[369075654,1751458231848,-305.92,0.0002401,2]
[369075655,1751458231857,-304.88,0.0002401,2]
[369075656,1751458231867,-305.59,0.0002401,2]
[369075657,1751458231876,-304.33,0.00024296,2]
[369075658,1751458231886,-254.21995345,0.00024624,11]
[369075659,1751458231896,-254.21995345,0.00025245,12]
[369075660,1751458231905,-301.38,0.00025721,2]
[369075661,1751458231914,-302.63,0.00025721,2]
[369075662,1751458231924,-254.21995345,0.00025866,14]
[369075663,1751458231934,-2000.0,0.000263,2]
[369075664,1751458231943,-301.16,0.000263,2]
[369075665,1751458231953,-304.82,0.000263,2]
[369075666,1751458231962,-305.22,0.000263,2]
[369075667,1751458231972,-300.0,0.00026411,2]
[369075668,1751458231981,-250.0,0.00026411,2]
[369075669,1751458231991,-254.21995345,0.00026486,15]
[369075670,1751458232230,-150.99,0.00026591,2]
[369075671,1751458232243,-254.21995345,0.00027107,16]
[369075672,1751458232253,-150.0,0.00027364,2]
[369075673,1751458232263,-500.0,0.00027365,10]
[369075674,1751458232272,-500.0,0.00027365,10]
[369075675,1751458232282,-500.0,0.00027365,10]
[369075676,1751458232291,-500.0,0.00027365,10]
[369075677,1751458232302,-500.0,0.00027365,10]
[369075678,1751458232311,-500.0,0.00027365,10]
[369075679,1751458232320,-500.0,0.00027365,10]
[369075680,1751458232330,-500.0,0.00027365,10]
[369075681,1751458232339,-500.0,0.00027365,10]
[369075682,1751458232348,-500.0,0.00027365,10]
[369075683,1751458232358,-254.21995345,0.00027728,17]
[369075684,1751458232367,-254.21995345,0.00028348,18]
[369075685,1751458232377,-254.21995345,0.00028969,20]
[369075686,1751458232386,-2000.0,0.00029,2]
[369075687,1751458232396,-168.0,0.00029164,2]
[369075688,1751458232405,-469.21,0.00029265,2]
[369075689,1751458232414,-150.0,0.00029305,2]
[369075690,1751458232423,-746.38,0.00029338,2]
[369075691,1751458232432,-399.49,0.00029387,2]
[369075692,1751458232442,-200.0,0.00029412,7]
[369075693,1751458232451,-3032.5,0.00029424,7]
[369075694,1751458232460,-212.98845237,0.00029449,2]
[369075695,1751458232469,-5000.0,0.0002945,2]
[369075696,1751458232479,-207.4,0.00029508,2]
[369075697,1751458232488,-254.21995345,0.0002959,21]
[369075698,1751458232497,-548.794,0.0002989,2]
[369075699,1751458232507,-163.0,0.000299,22]
[369075700,1751458232516,-215.55396,0.0003,7]
[369075701,1751458232525,-215.55396,0.0003,7]
[369075702,1751458232535,-215.55396,0.0003,7]
[369075703,1751458232544,-215.55396,0.0003,7]
[369075704,1751458232553,-163.0,0.0003,22]
[369075705,1751458232562,-2831.0,0.0003,7]
[369075706,1751458232571,-822.0,0.0003,7]
[369075707,1751458232582,-216.58290578,0.0003,7]
[369075708,1751458232591,-168.0,0.0003,14]
[369075709,1751458232600,-150.0,0.00030088,2]
[369075710,1751458232609,-254.21995345,0.0003021,22]
[369075711,1751458232618,-2831.0,0.00030274,7]
[369075712,1751458232627,-822.0,0.00030274,7]
[369075713,1751458232637,-1000.0,0.00030428,2]
[369075714,1751458232646,-215.55396,0.00030505,7]
[369075715,1751458232655,-215.55396,0.00030505,7]
[369075716,1751458232664,-701.167,0.00030515,26]
[369075717,1751458232673,-2831.0,0.00030548,7]
[369075718,1751458232683,-822.0,0.00030548,7]
[369075719,1751458232691,-2831.0,0.00030822,7]
[369075720,1751458232700,-822.0,0.00030822,7]
[369075721,1751458232710,-254.21995345,0.00030831,23]
[369075722,1751458232719,-399.49,0.00030856,2]
[369075723,1751458232729,-150.0,0.00030871,2]
[369075724,1751458232739,-215.55396,0.0003099,7]
[369075725,1751458232748,-215.55396,0.0003099,7]
[369075726,1751458232757,-1000.0,0.00031092,2]
[369075727,1751458232767,-2831.0,0.00031096,7]
[369075728,1751458232776,-822.0,0.00031096,7]
[369075729,1751458232785,-168.0,0.00031151,2]
[369075730,1751458232794,-2831.0,0.0003137,7]
[369075731,1751458232804,-822.0,0.0003137,7]
[369075732,1751458232814,-215.55396,0.0003139,7]
[369075733,1751458232823,-215.55396,0.0003139,7]
[369075734,1751458232833,-254.21995345,0.00031452,25]
[369075735,1751458232844,-2831.0,0.00031644,7]
[369075736,1751458232854,-822.0,0.00031644,7]
[369075737,1751458232863,-150.0,0.00031653,2]
[369075738,1751458232873,-150.0,0.00031693,25]
[369075739,1751458232882,-150.0,0.00031693,25]
[369075740,1751458232892,-2000.0,0.000318,2]
[369075741,1751458232902,-2831.0,0.00031918,7]
[369075742,1751458232912,-822.0,0.00031918,7]
[369075743,1751458232921,-150.0,0.00031967,25]
[369075744,1751458232930,-150.0,0.00031967,25]
[369075745,1751458232939,-215.55396,0.0003198,7]
[369075746,1751458232950,-215.55396,0.0003198,7]
[369075747,1751458232959,-1995.85,0.00032,7]
[369075748,1751458232968,-10000.0,0.00032,5]
[369075749,1751458232978,-254.21995345,0.00032072,26]
[369075750,1751458232986,-2831.0,0.00032192,7]
[369075751,1751458232997,-822.0,0.00032192,7]
[369075752,1751458233006,-200.0,0.00032241,25]
[369075753,1751458233015,-150.0,0.00032241,25]
[369075754,1751458233025,-399.49,0.00032325,2]
[369075755,1751458233034,-200.0,0.00032395,2]
[369075756,1751458233043,-150.0,0.00032436,2]
[369075757,1751458233053,-2831.0,0.00032466,7]
[369075758,1751458233062,-822.0,0.00032466,7]
[369075759,1751458233071,-500.0,0.000325,11]
[369075760,1751458233081,-1372.0,0.000325,7]
[369075761,1751458233091,-153.0,0.00032515,25]
[369075762,1751458233100,-150.0,0.00032593,2]
[369075763,1751458233110,-1000.0,0.000326,11]
[369075764,1751458233119,-11500.44,0.000326,4]
[369075765,1751458233129,-215.55396,0.0003268,7]
[369075766,1751458233139,-215.55396,0.0003268,7]
[369075767,1751458233149,-254.21995345,0.00032693,27]
[369075768,1751458233159,-1500.0,0.000327,11]
[369075769,1751458233169,-215.55396,0.0003271,7]
[369075770,1751458233179,-215.55396,0.0003271,7]
[369075771,1751458233188,-2831.0,0.0003274,7]
[369075772,1751458233198,-822.0,0.0003274,7]
[369075773,1751458233208,-160.17105683,0.00032756,15]
[369075774,1751458233218,-2714.45432302,0.00032756,2]
[369075775,1751458233231,-840.37108126,0.00032763,2]
[369075776,1751458233241,-163.58047438,0.00032764,2]
[369075777,1751458233250,-2714.45432293,0.00032771,2]
[369075778,1751458233259,-4473.8373,0.00032776,3]
[369075779,1751458233270,-186.28782382,0.00032776,4]
[369075780,1751458233281,-318.55858974,0.00032776,2]
[369075781,1751458233291,-2714.45432293,0.00032787,2]